bitfinex/quotes_BTCUSD_20250105
["timestamp","ask_amount","ask_price","bid_price","bid_amount"]
[1736041548571,0.1264854,98180.0,98179.0,0.91026133]
[1736041548969,0.1264854,98180.0,98179.0,0.91426133]
[1736041549268,0.1264854,98180.0,98179.0,0.91526133]
[1736041549974,0.1264854,98180.0,98179.0,0.6860328]
[1736041551132,0.1264854,98180.0,98179.0,0.88534133]
[1736041551342,0.1264854,98180.0,98179.0,0.8541966]
[1736041551595,0.1264854,98180.0,98179.0,0.8491966]
[1736041551777,0.1264854,98180.0,98179.0,0.8481966]
[1736041552014,0.1264854,98180.0,98179.0,0.62296807]
[1736041552322,0.1264854,98180.0,98179.0,0.61996807]
[1736041552550,0.1264854,98180.0,98179.0,0.62396807]
[1736041552768,0.1264854,98180.0,98179.0,0.61896807]
[1736041553609,0.1264854,98180.0,98179.0,0.61996807]
[1736041555044,0.1264854,98180.0,98179.0,0.61896807]
[1736041562578,0.1264854,98180.0,98179.0,0.61996807]
[1736041564630,0.1264854,98180.0,98179.0,0.62296807]
[1736041564926,0.1264854,98180.0,98179.0,0.61996807]
[1736041565147,0.1264854,98180.0,98179.0,0.61896807]
[1736041565314,0.1264854,98180.0,98179.0,0.62296807]
[1736041565492,0.1264854,98180.0,98179.0,0.61996807]
[1736041565852,0.1264854,98180.0,98179.0,0.62196807]
[1736041566251,0.1264854,98180.0,98179.0,0.61996807]
[1736041566451,0.1264854,98180.0,98179.0,0.62296807]
[1736041571599,0.1264854,98180.0,98179.0,0.51898175]
[1736041571806,0.2264854,98180.0,98179.0,0.51898175]
[1736041572619,0.2264854,98180.0,98179.0,0.51798175]
[1736041572823,0.2264854,98180.0,98179.0,0.51498175]
[1736041573020,0.7229854,98180.0,98179.0,0.51498175]
[1736041578698,0.7229854,98180.0,98179.0,0.01498175]
[1736041578912,0.6433854,98180.0,98177.0,0.0001708]
[1736041579122,0.1773,98178.0,98177.0,0.0001708]
[1736041580474,0.1785734,98178.0,98177.0,0.0001708]
[1736041583426,0.0773,98178.0,98177.0,0.10415712]
[1736041583663,0.4965,98179.0,98178.0,0.203711]
[1736041583877,0.4965,98179.0,98178.0,0.30769732]
[1736041584085,0.4965,98179.0,98178.0,0.32353165]
[1736041584884,8.54e-05,98180.0,98178.0,0.11982065]
[1736041585095,8.54e-05,98180.0,98179.0,0.10398632]
[1736041585302,8.54e-05,98180.0,98179.0,0.11982045]
[1736041587722,8.54e-05,98180.0,98179.0,0.12482045]
[1736041588107,8.54e-05,98180.0,98179.0,0.12082045]
[1736041588362,8.54e-05,98180.0,98179.0,0.12382045]
[1736041588752,8.54e-05,98180.0,98179.0,0.12082045]
[1736041589079,8.54e-05,98180.0,98179.0,0.11982045]
[1736041589491,8.54e-05,98180.0,98179.0,0.12082045]
[1736041590636,8.54e-05,98180.0,98179.0,0.12382045]
[1736041591125,8.54e-05,98180.0,98179.0,0.12082045]
[1736041591363,8.54e-05,98180.0,98179.0,0.12482045]
[1736041592180,8.54e-05,98180.0,98179.0,0.12382045]
[1736041592390,0.1000854,98180.0,98179.0,0.12382045]
[1736041592589,0.1000854,98180.0,98179.0,0.12482045]
[1736041593819,0.1000854,98180.0,98179.0,0.12082045]
[1736041594024,0.1000854,98180.0,98179.0,0.12482045]
[1736041595900,0.1000854,98180.0,98179.0,0.02083413]
[1736041596090,0.22735865,98180.0,98179.0,0.005]
[1736041596292,0.2260854,98180.0,98179.0,0.005]
[1736041596495,0.3260854,98180.0,98179.0,0.005]
[1736041596898,0.8225854,98180.0,98179.0,0.005]
[1736041597470,0.1,98178.0,98177.0,0.0001708]
[1736041597674,0.32727357,98178.0,98177.0,0.0001708]
[1736041597903,0.326,98178.0,98177.0,0.0001708]
[1736041598895,0.42164185,98178.0,98177.0,0.0001708]
[1736041599314,0.75902895,98178.0,98177.0,0.0001708]
[1736041599518,0.6633871,98178.0,98177.0,0.0001708]
[1736041601059,0.89173615,98178.0,98177.0,0.0001708]
[1736041602074,0.6633871,98178.0,98177.0,0.0001708]
[1736041602829,1.1598871,98178.0,98177.0,0.0001708]
[1736041605012,1.34248119,98178.0,98177.0,0.0001708]
[1736041605841,1.1598871,98178.0,98177.0,0.0001708]
[1736041606812,1.17344965,98178.0,98177.0,0.0001708]
[1736041611317,0.83606255,98178.0,98177.0,0.0001708]
[1736041619211,0.83614795,98178.0,98177.0,0.0001708]
[1736041622941,0.94013427,98178.0,98177.0,0.0001708]
[1736041623172,0.94705427,98178.0,98177.0,0.0001708]
[1736041624098,1.09705427,98178.0,98177.0,0.0001708]
[1736041624825,1.10005427,98178.0,98177.0,0.0011708]
[1736041625027,1.09705427,98178.0,98177.0,0.0001708]
[1736041625442,1.10005427,98178.0,98177.0,0.0011708]
[1736041625942,1.10205427,98178.0,98177.0,0.0011708]
[1736041626326,1.43872981,98178.0,98177.0,0.0011708]
[1736041626526,1.43672981,98178.0,98177.0,0.0011708]
[1736041626731,1.43672981,98178.0,98177.0,0.00080378]
[1736041626927,1.43672981,98178.0,98151.0,0.0001708]
[1736041626928,0.303763,98153.0,98151.0,0.0001708]
[1736041627132,0.385163,98153.0,98152.0,0.00029626]
[1736041628489,0.385163,98153.0,98152.0,0.00329626]
[1736041629238,0.1814,98153.0,98152.0,0.00029626]
[1736041629441,0.18267381,98153.0,98152.0,0.00329626]
[1736041630279,0.18267381,98153.0,98152.0,0.00429626]
[1736041630936,0.18267381,98153.0,98152.0,0.00129626]
[1736041631704,0.18367381,98153.0,98152.0,0.00129626]
[1736041632204,0.18367381,98153.0,98152.0,0.00029626]
[1736041632408,0.18267381,98153.0,98152.0,0.00029626]
[1736041632811,0.67826419,98153.0,98152.0,0.00029626]
[1736041633022,0.59559038,98153.0,98152.0,0.00029626]
[1736041634066,0.59459038,98153.0,98152.0,0.00029626]
[1736041634937,1.02555338,98153.0,98152.0,0.00029626]
[1736041636095,1.02955338,98153.0,98152.0,0.00029626]
[1736041637244,1.164332,98153.0,98152.0,0.00029626]
[1736041637690,1.168332,98153.0,98152.0,0.00029626]
[1736041637900,1.162332,98153.0,98152.0,0.00029626]
[1736041638242,1.22718199,98153.0,98152.0,0.00029626]
[1736041638618,1.09040337,98153.0,98152.0,0.00029626]
[1736041638824,1.09440337,98153.0,98152.0,0.00029626]
[1736041639246,1.08840337,98153.0,98152.0,0.00029626]
[1736041639445,1.02755338,98153.0,98152.0,0.00029626]
[1736041640072,1.11880494,98153.0,98152.0,0.00029626]
[1736041640363,1.11680494,98153.0,98152.0,0.00029626]
[1736041640492,1.12080494,98153.0,98152.0,0.00029626]
[1736041640694,1.12280494,98153.0,98152.0,0.00029626]
[1736041640919,1.03155338,98153.0,98152.0,0.00029626]
[1736041641152,1.02955338,98153.0,98152.0,0.00029626]
[1736041642656,1.03155338,98153.0,98152.0,0.00029626]
[1736041643705,1.04766099,98153.0,98152.0,0.00029626]
[1736041644081,1.38466944,98153.0,98152.0,0.00029626]
[1736041644290,1.48865576,98153.0,98152.0,0.00029626]
[1736041644561,1.63865576,98153.0,98152.0,0.00029626]
[1736041644769,0.49372332,98127.0,98124.0,8.54e-05]
[1736041644982,0.00127408,98126.0,98124.0,8.54e-05]
[1736041646128,0.00127408,98126.0,98125.0,0.0050854]
[1736041646513,0.00127408,98126.0,98125.0,0.0040854]
[1736041646940,0.00127408,98126.0,98125.0,0.0060854]
[1736041647341,0.00127408,98126.0,98125.0,0.0020854]
[1736041647546,0.00127408,98126.0,98125.0,0.0070854]
[1736041647743,0.4949974,98126.0,98125.0,0.0070854]
[1736041647954,0.49372332,98126.0,98125.0,0.0070854]
[1736041653420,0.49281932,98126.0,98125.0,0.0070854]
[1736041653851,0.49191932,98126.0,98125.0,0.0070854]
[1736041676910,0.49191932,98126.0,98125.0,0.0050854]
[1736041677481,0.49191932,98126.0,98125.0,8.54e-05]
[1736041678102,0.57139012,98126.0,98125.0,8.54e-05]
[1736041678970,0.71659012,98126.0,98125.0,0.0010854]
[1736041679248,0.71659012,98126.0,98125.0,8.54e-05]
[1736041681984,0.80785412,98126.0,98125.0,8.54e-05]
[1736041685545,0.71659012,98126.0,98125.0,8.54e-05]
[1736041687373,0.80793895,98126.0,98125.0,8.54e-05]
[1736041688728,0.58343895,98126.0,98125.0,8.54e-05]
[1736041689771,0.49209012,98126.0,98125.0,8.54e-05]
[1736041690149,0.49209012,98126.0,98125.0,0.0010854]
[1736041692290,0.49209012,98126.0,98125.0,8.54e-05]
[1736041692821,0.49209012,98126.0,98125.0,0.0010854]
[1736041693011,0.49209012,98126.0,98125.0,8.54e-05]
[1736041693243,0.49209012,98126.0,98125.0,0.0010854]
[1736041693600,0.49209012,98126.0,98125.0,8.54e-05]
[1736041693756,0.49209012,98126.0,98125.0,0.0010854]
[1736041694135,0.49209012,98126.0,98125.0,8.54e-05]
[1736041695403,0.49209012,98126.0,98125.0,0.0010854]
[1736041695801,0.49209012,98126.0,98125.0,8.54e-05]
[1736041696009,0.49209012,98126.0,98125.0,0.0010854]
[1736041696567,0.67019012,98126.0,98125.0,0.0010854]
[1736041696704,0.71549012,98126.0,98125.0,0.0010854]
[1736041697849,0.71549012,98126.0,98125.0,8.54e-05]
[1736041698555,0.85238612,98126.0,98125.0,8.54e-05]
[1736041699355,0.71549012,98126.0,98125.0,8.54e-05]
[1736041700772,0.85238612,98126.0,98125.0,8.54e-05]
[1736041703820,0.71549012,98126.0,98125.0,8.54e-05]
[1736041706096,0.80688493,98126.0,98125.0,8.54e-05]
[1736041707101,0.71549012,98126.0,98125.0,8.54e-05]
[1736041709265,0.80688758,98126.0,98125.0,8.54e-05]
[1736041710810,0.71549012,98126.0,98125.0,8.54e-05]
[1736041711011,0.71649012,98126.0,98125.0,8.54e-05]
[1736041711615,0.71749012,98126.0,98125.0,8.54e-05]
[1736041712125,0.85438612,98126.0,98125.0,8.54e-05]
[1736041712328,0.85338612,98126.0,98125.0,8.54e-05]
[1736041712486,0.85538612,98126.0,98125.0,8.54e-05]
[1736041713087,0.85238612,98126.0,98125.0,8.54e-05]
[1736041713511,0.85338612,98126.0,98125.0,8.54e-05]
[1736041713719,0.85238612,98126.0,98125.0,8.54e-05]
[1736041714093,0.85438612,98126.0,98125.0,8.54e-05]
[1736041714299,0.85538612,98126.0,98125.0,8.54e-05]
[1736041714707,0.85438612,98126.0,98125.0,8.54e-05]
[1736041715305,0.85238612,98126.0,98125.0,8.54e-05]
[1736041715543,0.85338612,98126.0,98125.0,8.54e-05]
[1736041715745,1.05389228,98126.0,98125.0,8.54e-05]
[1736041715894,1.05289228,98126.0,98125.0,8.54e-05]
[1736041716099,1.05489228,98126.0,98125.0,8.54e-05]
[1736041716916,0.71749012,98126.0,98125.0,8.54e-05]
[1736041717115,0.71849012,98126.0,98125.0,8.54e-05]
[1736041717320,0.72049012,98126.0,98125.0,8.54e-05]
[1736041717503,0.71949012,98126.0,98125.0,8.54e-05]
[1736041717952,0.72049012,98126.0,98125.0,8.54e-05]
[1736041718346,0.71949012,98126.0,98125.0,8.54e-05]
[1736041718523,0.71549012,98126.0,98125.0,8.54e-05]
[1736041718665,0.71649012,98126.0,98125.0,8.54e-05]
[1736041718867,1.05593814,98126.0,98125.0,8.54e-05]
[1736041719499,1.05793814,98126.0,98125.0,8.54e-05]
[1736041719712,1.05393814,98126.0,98125.0,8.54e-05]
[1736041719882,1.05293814,98126.0,98125.0,8.54e-05]
[1736041720101,1.05393814,98126.0,98125.0,8.54e-05]
[1736041720336,1.23646614,98126.0,98125.0,8.54e-05]
[1736041720669,1.23746614,98126.0,98125.0,8.54e-05]
[1736041720872,1.23846614,98126.0,98125.0,8.54e-05]
[1736041721277,1.23746614,98126.0,98125.0,8.54e-05]
[1736041721773,1.23846614,98126.0,98125.0,8.54e-05]
[1736041721920,1.23646614,98126.0,98125.0,8.54e-05]
[1736041722340,1.23846614,98126.0,98125.0,8.54e-05]
[1736041722948,1.05593814,98126.0,98125.0,8.54e-05]
[1736041723807,1.05493814,98126.0,98125.0,8.54e-05]
[1736041724178,1.05593814,98126.0,98125.0,8.54e-05]
[1736041724953,1.05493814,98126.0,98125.0,8.54e-05]
[1736041725576,1.05293814,98126.0,98125.0,8.54e-05]
[1736041726306,1.05593814,98126.0,98125.0,8.54e-05]
[1736041726639,1.05293814,98126.0,98125.0,8.54e-05]
[1736041726981,1.05593814,98126.0,98125.0,8.54e-05]
[1736041727484,1.05493814,98126.0,98125.0,8.54e-05]
[1736041727922,1.05593814,98126.0,98125.0,8.54e-05]
[1736041728236,1.05393814,98126.0,98125.0,8.54e-05]
[1736041728651,0.71849012,98126.0,98125.0,8.54e-05]
[1736041729272,0.72049012,98126.0,98125.0,8.54e-05]
[1736041729676,0.71949012,98126.0,98125.0,8.54e-05]
[1736041729997,0.72049012,98126.0,98125.0,8.54e-05]
[1736041731030,1.0579832,98126.0,98125.0,8.54e-05]
[1736041732429,0.8576324,98126.0,98125.0,8.54e-05]
[1736041733433,0.8566324,98126.0,98125.0,8.54e-05]
[1736041733749,0.8576324,98126.0,98125.0,8.54e-05]
[1736041734542,0.8536324,98126.0,98125.0,8.54e-05]
[1736041735321,0.8556324,98126.0,98125.0,8.54e-05]
[1736041736173,0.8526324,98126.0,98125.0,8.54e-05]
[1736041736375,0.8536324,98126.0,98125.0,8.54e-05]
[1736041736576,0.8556324,98126.0,98125.0,8.54e-05]
[1736041737014,1.05598724,98126.0,98125.0,8.54e-05]
[1736041737837,1.05398724,98126.0,98125.0,8.54e-05]
[1736041738234,1.05598724,98126.0,98125.0,8.54e-05]
[1736041738748,1.05498724,98126.0,98125.0,8.54e-05]
[1736041738950,1.05298724,98126.0,98125.0,8.54e-05]
[1736041739095,1.05398724,98126.0,98125.0,8.54e-05]
[1736041739314,0.71849012,98126.0,98125.0,8.54e-05]
[1736041739511,0.71749012,98126.0,98125.0,8.54e-05]
[1736041739814,0.71849012,98126.0,98125.0,8.54e-05]
[1736041740370,0.71749012,98126.0,98125.0,8.54e-05]
[1736041740816,0.71849012,98126.0,98125.0,8.54e-05]
[1736041741023,0.71649012,98126.0,98125.0,8.54e-05]
[1736041741239,0.71849012,98126.0,98125.0,8.54e-05]
[1736041742081,0.81849012,98126.0,98125.0,8.54e-05]
[1736041742527,0.81649012,98126.0,98125.0,8.54e-05]
[1736041742711,0.81549012,98126.0,98125.0,8.54e-05]
[1736041742843,0.81749012,98126.0,98125.0,8.54e-05]
[1736041743061,0.81849012,98126.0,98125.0,8.54e-05]
[1736041743257,1.15608954,98126.0,98125.0,8.54e-05]
[1736041744593,1.15408954,98126.0,98125.0,8.54e-05]
[1736041744915,1.15608954,98126.0,98125.0,8.54e-05]
[1736041745301,1.15508954,98126.0,98125.0,8.54e-05]
[1736041745633,1.15608954,98126.0,98125.0,8.54e-05]
[1736041754853,1.17908954,98126.0,98125.0,8.54e-05]
[1736041755896,1.17608954,98126.0,98125.0,8.54e-05]
[1736041756234,1.17808954,98126.0,98125.0,8.54e-05]
[1736041756635,1.18408954,98126.0,98125.0,8.54e-05]
[1736041757580,1.18208954,98126.0,98125.0,8.54e-05]
[1736041758006,1.17808954,98126.0,98125.0,8.54e-05]
[1736041758202,1.18308954,98126.0,98125.0,8.54e-05]
[1736041759057,1.17808954,98126.0,98125.0,8.54e-05]
[1736041759389,1.18800954,98126.0,98125.0,8.54e-05]
[1736041760935,1.18300954,98126.0,98125.0,8.54e-05]
[1736041761147,1.18500954,98126.0,98125.0,8.54e-05]
[1736041761505,1.19100954,98126.0,98125.0,8.54e-05]
[1736041761713,1.18500954,98126.0,98125.0,8.54e-05]
[1736041762083,1.19100954,98126.0,98125.0,8.54e-05]
[1736041762812,1.18900954,98126.0,98125.0,8.54e-05]
[1736041764308,1.19100954,98126.0,98125.0,8.54e-05]
[1736041764714,1.18500954,98126.0,98125.0,8.54e-05]
[1736041764932,1.19100954,98126.0,98125.0,8.54e-05]
[1736041765375,1.18900954,98126.0,98125.0,8.54e-05]
[1736041765631,1.19100954,98126.0,98125.0,8.54e-05]
[1736041765872,1.19700954,98126.0,98125.0,8.54e-05]
[1736041771122,1.18500954,98126.0,98125.0,8.54e-05]
[1736041771322,1.18300954,98126.0,98125.0,8.54e-05]
[1736041771527,1.19100954,98126.0,98125.0,8.54e-05]
[1736041772151,1.18500954,98126.0,98125.0,8.54e-05]
[1736041772451,1.18300954,98126.0,98125.0,8.54e-05]
[1736041772654,1.18900954,98126.0,98125.0,8.54e-05]
[1736041774242,1.18500954,98126.0,98125.0,8.54e-05]
[1736041774785,1.18900954,98126.0,98125.0,8.54e-05]
[1736041774924,1.19100954,98126.0,98125.0,8.54e-05]
[1736041776948,1.18500954,98126.0,98125.0,8.54e-05]
[1736041777305,1.18900954,98126.0,98125.0,8.54e-05]
[1736041777599,1.19100954,98126.0,98125.0,8.54e-05]
[1736041777946,1.18300954,98126.0,98125.0,8.54e-05]
[1736041778381,1.19100954,98126.0,98125.0,8.54e-05]
[1736041780679,1.19100954,98126.0,98101.0,0.01041056]
[1736041780680,0.54096312,98110.0,98101.0,8.54e-05]
[1736041780882,0.303869,98102.0,98101.0,8.54e-05]
[1736041781834,0.1,98104.0,98101.0,8.54e-05]
[1736041782085,4.938e-05,98102.0,98101.0,8.54e-05]
[1736041782288,0.09270094,98102.0,98101.0,0.12120164]
[1736041782663,0.09270094,98102.0,98101.0,0.12220164]
[1736041783425,0.09142665,98102.0,98101.0,0.12220164]
[1736041783761,4.938e-05,98102.0,98101.0,0.12320164]
[1736041783932,4.938e-05,98102.0,98101.0,0.12120164]
[1736041784162,4.938e-05,98102.0,98101.0,0.12320164]
[1736041784457,0.00104938,98102.0,98101.0,0.12820164]
[1736041784668,4.938e-05,98102.0,98101.0,0.12120164]
[1736041785074,0.00104938,98102.0,98101.0,0.12820164]
[1736041785236,4.938e-05,98102.0,98101.0,0.12320164]
[1736041785434,4.938e-05,98102.0,98101.0,0.12120164]
[1736041785769,4.938e-05,98102.0,98101.0,0.19900164]
[1736041786771,4.938e-05,98102.0,98101.0,0.20300164]
[1736041786977,4.938e-05,98102.0,98101.0,0.20100164]
[1736041787157,4.938e-05,98102.0,98101.0,0.19700164]
[1736041787360,4.938e-05,98102.0,98101.0,0.19900164]
[1736041787589,4.938e-05,98102.0,98101.0,0.20300164]
[1736041787787,4.938e-05,98102.0,98101.0,0.20100164]
[1736041788088,4.938e-05,98102.0,98101.0,0.19900164]
[1736041788290,4.938e-05,98102.0,98101.0,0.20300164]
[1736041788462,4.938e-05,98102.0,98101.0,0.19700164]
[1736041788888,4.938e-05,98102.0,98101.0,0.19900164]
[1736041790018,4.938e-05,98102.0,98101.0,0.20100164]
[1736041790396,4.938e-05,98102.0,98101.0,0.20300164]
[1736041790779,4.938e-05,98102.0,98101.0,0.20100164]
[1736041791166,4.938e-05,98102.0,98101.0,0.20300164]
[1736041792565,4.938e-05,98102.0,98101.0,0.12720164]
[1736041796678,4.938e-05,98102.0,98101.0,0.12320164]
[1736041796823,4.938e-05,98102.0,98101.0,0.12120164]
[1736041797026,4.938e-05,98102.0,98101.0,0.12520164]
[1736041797237,4.938e-05,98102.0,98101.0,0.12720164]
[1736041798810,0.07854938,98102.0,98101.0,0.02321532]
[1736041799013,0.17982374,98102.0,98101.0,0.02321532]
[1736041799157,0.17982374,98102.0,98101.0,0.0060854]
[1736041799672,0.17982374,98102.0,98101.0,0.0040854]
[1736041800112,0.17982374,98102.0,98101.0,0.0020854]
[1736041800311,0.17982374,98102.0,98101.0,0.0060854]
[1736041801908,4.938e-05,98102.0,98101.0,0.0060854]
[1736041802034,0.00132368,98102.0,98101.0,0.0060854]
[1736041803457,0.4926868,98102.0,98101.0,0.0060854]
[1736041803698,0.4914125,98102.0,98101.0,0.0060854]
[1736041804279,0.58280566,98102.0,98101.0,0.0060854]
[1736041805651,0.4914125,98102.0,98101.0,0.0060854]
[1736041806065,0.4914125,98102.0,98101.0,0.11007172]
[1736041807703,0.4914125,98102.0,98101.0,0.12550316]
[1736041809612,4.938e-05,98102.0,98101.0,0.12550316]
[1736041810756,4.938e-05,98102.0,98101.0,0.15676923]
[1736041811370,4.938e-05,98102.0,98101.0,0.13596655]
[1736041814183,4.938e-05,98102.0,98101.0,0.12550316]
[1736041814578,4.938e-05,98102.0,98101.0,0.11007172]
[1736041820533,4.938e-05,98102.0,98101.0,0.0060854]
[1736041821646,0.4914125,98102.0,98101.0,0.0060854]
[1736041826317,0.4914125,98102.0,98101.0,0.11007172]
[1736041827677,4.938e-05,98102.0,98101.0,0.11007172]
[1736041830769,4.938e-05,98102.0,98101.0,0.06007172]
[1736041839137,0.203871,98101.0,98100.0,8.54e-05]
[1736041839572,0.69523412,98101.0,98100.0,8.54e-05]
[1736041840430,0.69523412,98101.0,98100.0,0.0020854]
[1736041840643,0.69523412,98101.0,98100.0,0.0060854]
[1736041841398,0.49136312,98101.0,98100.0,0.11007172]
[1736041844471,0.49136312,98101.0,98100.0,0.10507172]
[1736041845309,0.49136312,98101.0,98100.0,0.11869256]
[1736041845510,0.00022018,98102.0,98100.0,0.11869256]
[1736041845705,0.00022018,98102.0,98101.0,0.10398632]
[1736041845912,0.00022018,98102.0,98101.0,0.11760694]
[1736041847431,0.00022018,98102.0,98101.0,0.12060694]
[1736041847647,0.00022018,98102.0,98101.0,0.12160694]
[1736041854738,0.00022018,98102.0,98101.0,0.10798632]
[1736041856625,0.00022018,98102.0,98101.0,0.60798632]
[1736041857051,0.00022018,98102.0,98101.0,0.62160694]
[1736041857249,0.07702018,98102.0,98101.0,0.62160694]
[1736041859935,0.07702018,98102.0,98101.0,0.12160694]
[1736041860136,0.07702018,98102.0,98101.0,0.10798632]
[1736041865495,0.12532018,98102.0,98101.0,0.10798632]
[1736041868431,0.12659434,98102.0,98101.0,0.004]
[1736041869473,0.61795746,98102.0,98101.0,0.004]
[1736041869697,0.6166833,98102.0,98101.0,0.004]
[1736041872903,0.70807646,98102.0,98101.0,0.004]
[1736041873776,0.6166833,98102.0,98101.0,0.004]
[1736041883842,0.7166833,98102.0,98101.0,0.004]
[1736041884047,0.8166833,98102.0,98101.0,0.004]
[1736041885326,1.15436789,98102.0,98101.0,0.004]
[1736041886389,0.8166833,98102.0,98101.0,0.004]
[1736041887399,0.8166833,98102.0,98101.0,0.003]
[1736041887758,0.8166833,98102.0,98101.0,0.004]
[1736041887759,0.9538898,98102.0,98101.0,0.004]
[1736041888262,0.9538898,98102.0,98101.0,0.003]
[1736041889163,0.9538898,98102.0,98100.0,8.54e-05]
[1736041889373,0.10127438,98101.0,98100.0,8.54e-05]
[1736041889922,0.7166833,98102.0,98100.0,8.54e-05]
[1736041890131,0.00127429,98101.0,98100.0,8.54e-05]
[1736041891108,0.5915833,98102.0,98100.0,8.54e-05]
[1736041892001,0.5915833,98102.0,98101.0,0.01361596]
[1736041893795,0.5915833,98102.0,98100.0,8.54e-05]
[1736041894198,0.4915833,98102.0,98100.0,8.54e-05]
[1736041894430,0.5915833,98102.0,98100.0,8.54e-05]
[1736041896652,0.4915833,98102.0,98100.0,8.54e-05]
[1736041896855,0.5915833,98102.0,98100.0,8.54e-05]
[1736041899405,0.49136312,98101.0,98100.0,8.54e-05]
[1736041900622,0.49136312,98101.0,98100.0,0.0010854]
[1736041904824,0.59136312,98101.0,98100.0,0.0010854]
[1736041908499,0.49136312,98101.0,98100.0,0.10507172]
[1736041908937,0.49136312,98101.0,98100.0,0.11868662]
[1736041911087,0.59136312,98101.0,98100.0,0.11868662]
[1736041911295,0.10022018,98102.0,98100.0,0.11868662]
[1736041911489,0.10022018,98102.0,98101.0,0.10398632]
[1736041914284,0.10022018,98102.0,98101.0,0.10498632]
[1736041921109,0.10022018,98102.0,98101.0,0.10398632]
[1736041921516,0.10022018,98102.0,98101.0,0.10498632]
[1736041923344,0.10022018,98102.0,98101.0,0.10398632]
[1736041923560,0.10022018,98102.0,98101.0,0.10498632]
[1736041924668,0.16667078,98102.0,98101.0,0.10498632]
[1736041925072,0.16667078,98102.0,98101.0,0.11860099]
[1736041926003,0.16667078,98102.0,98101.0,0.11960099]
[1736041926477,0.16667078,98102.0,98101.0,0.11760099]
[1736041926674,0.16667078,98102.0,98101.0,0.11960099]
[1736041926877,0.16667078,98102.0,98101.0,0.11860099]
[1736041927368,0.16667078,98102.0,98101.0,0.12060099]
[1736041927544,0.16667078,98102.0,98101.0,0.11760099]
[1736041927950,0.16667078,98102.0,98101.0,0.11960099]
[1736041928373,0.16667078,98102.0,98101.0,0.11760099]
[1736041928726,0.16667078,98102.0,98101.0,0.11860099]
[1736041929485,0.16667078,98102.0,98101.0,0.11760099]
[1736041929619,0.16667078,98102.0,98101.0,0.12060099]
[1736041929827,0.16667078,98102.0,98101.0,0.11860099]
[1736041930078,0.06667078,98102.0,98101.0,0.11960099]
[1736041930276,0.06667078,98102.0,98101.0,0.19750099]
[1736041930544,0.06667078,98102.0,98101.0,0.19550099]
[1736041930907,0.06667078,98102.0,98101.0,0.19850099]
[1736041931098,0.06667078,98102.0,98101.0,0.20246099]
[1736041931492,0.06667078,98102.0,98101.0,0.20846099]
[1736041931493,0.06767078,98102.0,98101.0,0.20846099]
[1736041931672,0.06767078,98102.0,98101.0,0.70846099]
[1736041932459,0.06767078,98102.0,98101.0,0.70746099]
[1736041932774,0.06667078,98102.0,98101.0,0.70346099]
[1736041932979,0.06767078,98102.0,98101.0,0.71046099]
[1736041933237,0.06767078,98102.0,98101.0,0.70846099]
[1736041933646,0.06767078,98102.0,98101.0,0.71046099]
[1736041939122,0.06767078,98102.0,98101.0,0.63356099]
[1736041962625,0.14527078,98102.0,98101.0,0.63356099]
[1736041963014,0.14527078,98102.0,98101.0,0.63352099]
[1736041963352,0.14527078,98102.0,98101.0,0.6647144]
[1736041972043,0.14527078,98102.0,98101.0,0.75644143]
[1736041972280,0.14527078,98102.0,98101.0,0.72524802]
[1736041972670,0.14527078,98102.0,98101.0,0.75645522]
[1736041973006,0.14527078,98102.0,98101.0,0.66472819]
[1736041973628,0.14527078,98102.0,98101.0,0.63352099]
[1736041974178,0.14527078,98102.0,98101.0,0.72524802]
[1736041974379,0.14527078,98102.0,98101.0,0.75645534]
[1736041975160,0.14527078,98102.0,98101.0,0.66472831]
[1736041975322,0.14527078,98102.0,98101.0,0.66472837]
[1736041975537,0.14527078,98102.0,98101.0,0.66472772]
[1736041976927,0.14527078,98102.0,98101.0,0.63352099]
[1736041977313,0.14527078,98102.0,98101.0,0.66472861]
[1736041980865,0.06767078,98102.0,98101.0,0.66472861]
[1736041981406,0.06767078,98102.0,98101.0,0.84126267]
[1736041981605,0.06767078,98102.0,98101.0,0.84818267]
[1736041982637,0.06767078,98102.0,98101.0,0.80234618]
[1736041983669,0.06767078,98102.0,98101.0,0.77113856]
[1736041984108,0.06767078,98102.0,98101.0,0.80234832]
[1736041984320,0.06767078,98102.0,98101.0,0.66473075]
[1736041984692,0.14877078,98102.0,98101.0,0.66473075]
[1736041984906,0.19587078,98102.0,98101.0,0.62660099]
[1736041989461,0.19587078,98102.0,98101.0,0.61298632]
[1736041989810,0.39587078,98102.0,98101.0,0.52262844]
[1736041990824,0.39587078,98102.0,98101.0,0.52062844]
[1736041991180,0.39487078,98102.0,98101.0,0.51362844]
[1736041991752,0.39487078,98102.0,98101.0,0.51462844]
[1736041992147,0.39487078,98102.0,98101.0,0.51662844]
[1736041992866,0.39487078,98102.0,98101.0,0.51462844]
[1736041993064,0.39487078,98102.0,98101.0,0.51362844]
[1736041993406,0.39487078,98102.0,98101.0,0.51462844]
[1736041993809,0.39487078,98102.0,98101.0,0.51362844]
[1736041995265,0.8862339,98102.0,98101.0,0.51362844]
[1736041998723,0.8882339,98102.0,98101.0,0.51362844]
[1736041999909,0.8902339,98102.0,98101.0,0.51362844]
[1736042000111,0.8912339,98102.0,98101.0,0.51362844]
[1736042003245,0.8912339,98102.0,98101.0,0.01362844]
[1736042003445,0.8882339,98102.0,98100.0,8.54e-05]
[1736042003669,0.20514547,98101.0,98100.0,8.54e-05]
[1736042003876,0.33034547,98101.0,98100.0,8.54e-05]
[1736042004029,0.329071,98101.0,98100.0,8.54e-05]
[1736042004980,0.430071,98101.0,98100.0,8.54e-05]
[1736042006244,0.431071,98101.0,98100.0,8.54e-05]
[1736042007366,0.92243412,98101.0,98100.0,8.54e-05]
[1736042018389,0.92260492,98101.0,98100.0,8.54e-05]
[1736042020952,0.92160492,98101.0,98100.0,8.54e-05]
[1736042021345,0.92260492,98101.0,98100.0,8.54e-05]
[1736042021704,0.92160492,98101.0,98100.0,8.54e-05]
[1736042022339,0.92260492,98101.0,98100.0,8.54e-05]
[1736042023066,0.92160492,98101.0,98100.0,8.54e-05]
[1736042024969,0.92260492,98101.0,98100.0,8.54e-05]
[1736042025182,0.92360492,98101.0,98100.0,8.54e-05]
[1736042025417,0.92160492,98101.0,98100.0,8.54e-05]
[1736042026273,0.92260492,98101.0,98100.0,8.54e-05]
[1736042026690,0.92160492,98101.0,98100.0,8.54e-05]
[1736042026897,0.76993392,98101.0,98100.0,8.54e-05]
[1736042028634,0.76893392,98101.0,98100.0,8.54e-05]
[1736042033753,0.76993392,98101.0,98100.0,8.54e-05]
[1736042035056,0.76893392,98101.0,98100.0,8.54e-05]
[1736042035410,0.86141532,98101.0,98100.0,8.54e-05]
[1736042036643,0.76893392,98101.0,98100.0,8.54e-05]
[1736042036867,0.76993392,98101.0,98100.0,8.54e-05]
[1736042037693,0.76952873,98101.0,98100.0,8.54e-05]
[1736042038684,0.86005889,98101.0,98100.0,8.54e-05]
[1736042039264,0.86105889,98101.0,98100.0,8.54e-05]
[1736042040607,0.90675083,98101.0,98100.0,8.54e-05]
[1736042041838,0.90575083,98101.0,98100.0,8.54e-05]
[1736042042040,1.28937987,98101.0,98100.0,8.54e-05]
[1736042042271,1.29037987,98101.0,98100.0,8.54e-05]
[1736042045979,1.28937987,98101.0,98100.0,8.54e-05]
[1736042046204,1.29037987,98101.0,98100.0,8.54e-05]
[1736042046701,0.90684371,98101.0,98100.0,8.54e-05]
[1736042047889,0.90584371,98101.0,98100.0,8.54e-05]
[1736042048334,0.90684371,98101.0,98100.0,8.54e-05]
[1736042048695,0.76852873,98101.0,98100.0,8.54e-05]
[1736042048895,0.76952873,98101.0,98100.0,8.54e-05]